[Event "European Corporate Championship 2022"]
[Site "Rotterdam"]
[Date "2022.06.19"]
[Round "9.7"]
[White "Rietman, Frits"]
[Black "Toledano Llinares, Juan A."]
[Result "1-0"]
[ECO "C50"]
[WhiteElo "2237"]
[BlackElo "2252"]
[Annotator "TA"]
[PlyCount "33"]
[EventDate "2022.06.18"]
[EventType "team-tourn"]
[EventCountry "NED"]
[SourceTitle "playchess.com"]
[Source "ChessBase"]
[SourceQuality "1"]
[TimeControl "900+5"]

{[%evp 9,33,29,40,12,14,-70,10,8,34,52,61,68,80,68,319,323,948,946,1716,1661,1647,1610,2751,2702,29990,1372]} 1. e4 {[%emt 0:00:02]} e5 {[%emt 0:00:02]} 2. Nf3 {[%emt 0:00:03]} Nc6 {[%emt 0:00:02]} 3. Bc4 {[%emt 0:00:04]} Bc5 {[%emt 0:00:02]} 4. c3 {[%emt 0:00:06]} Bb6 {[%emt 0:00:21]} 5. O-O {[%emt 0:00:22]} d6 {[%emt 0:00:05]} 6. h3 {[%emt 0:00:35] C50: Hungarian Defence and Giuoco Pianissimo.} Nf6 {[%emt 0:00:23]} 7. Re1 {[%emt 0:01:07] [#]} (7. d3 $11) 7... O-O {[%emt 0:00:18]} (7... Nxe4 $1 $15 8. Rxe4 (8. d4 d5) 8... d5 9. Nxe5 dxe4 10. Nxf7 Bxf2+ $1 11. Kxf2 O-O) 8. d4 {[%emt 0:00:22] The position is equal.} exd4 {[%emt 0:00:16]} 9. cxd4 {[%emt 0:00:10] [#]} Ne7 $146 {[%emt 0:00:13]} ({Predecessor:} 9... Nxe4 10. Rxe4 d5 11. Bg5 f6 12. Bb3 fxg5 13. Nc3 Kh8 14. Nxd5 Bf5 15. Re3 g4 16. Nxb6 axb6 17. Ne5 gxh3 {1-0 (53) Jones,G (2665)-Prohaszka,P (2585) Aghios Kirykos 2014}) 10. Nc3 {[%emt 0:00:43]} Ng6 {[%emt 0:00:07]} 11. Qb3 {[%emt 0:00:46] White is more active.} Qe7 $2 {[%emt 0:00:35][%mdl 8192] This costs Black the game.} (11... c6 $14) 12. e5 $18 {[%emt 0:00:18][%cal Be4e5,Be5f6,Bf6g7][%mdl 32]} Nd7 {[%emt 0:02:00]} (12... dxe5 13. dxe5 Ne8) 13. Bg5 {[%emt 0:00:32]} Nf6 {[%emt 0:02:46]} 14. exf6 {[%emt 0:00:21]} Qd7 {[%emt 0:00:22]} 15. Nd5 {[%emt 0:00:25]} Ba5 {[%emt 0:00:35]} 16. fxg7 {[%emt 0:00:14][%cal Og5h6] Bh6! would kill now.} Rd8 {[%emt 0:00:42] [#]} 17. Nf6+ {[%emt 0:00:06] Weighted Error Value: White=0.25 (precise) /Black=1.40} (17. Bh6 $142 $1 Qf5 18. g4 Bd2 19. Nxd2 Qe6 20. Rxe6 fxe6 21. Qf3 Bd7 22. Nf6+ Kf7 23. Ne8+ Kxe8 24. g8=Q+ Ke7 25. Bg5#) 1-0

[Event "European Corporate Championship 2022"]
[Site "Rotterdam"]
[Date "2022.06.19"]
[Round "9.9"]
[White "Werksma, Arie"]
[Black "Nijboer, Friso"]
[Result "0-1"]
[ECO "B30"]
[WhiteElo "2196"]
[BlackElo "2464"]
[Annotator "TA"]
[PlyCount "46"]
[EventDate "2022.06.18"]
[EventType "team-tourn"]
[EventCountry "NED"]
[SourceTitle "playchess.com"]
[Source "ChessBase"]
[SourceQuality "1"]
[TimeControl "900+5"]

{[%evp 9,46,8,20,1,15,4,9,14,26,18,21,25,66,50,66,53,71,66,64,62,61,48,64,49,63,55,127,125,197,85,112,108,100,-147,-154,-171,-189,-164,-166]} 1. e4 {[%emt 0:00:03]} c5 {[%emt 0:00:05]} 2. Nf3 {[%emt 0:00:02]} Nc6 {[%emt 0:00:01]} 3. Bb5 {[%emt 0:00:02]} e6 {[%emt 0:00:02]} 4. Bxc6 {[%emt 0:00:03]} bxc6 {[%emt 0:00:01]} 5. d3 {[%emt 0:00:04]} Qc7 {[%emt 0:02:27]} 6. Qe2 {[%emt 0:00:25] B30: Sicilian: 2...Nc6 3 Bb5, lines without ...g6.} e5 {[%emt 0:00:12]} 7. O-O {[%emt 0:00:44]} d6 {[%emt 0:00:00] [#]} 8. c3 $146 {[%emt 0:00:16] The position is equal.} ({Predecessor:} 8. Nbd2 Nf6 9. Nc4 Be6 10. b3 h6 11. Bb2 Bxc4 12. bxc4 g5 13. Ne1 Bg7 14. g3 {0-1 (61) Levay,S (2187)-Amdouni,Z (2267) Benidorm 2018}) 8... Ba6 {[%emt 0:00:53]} 9. Rd1 {[%emt 0:01:30]} Be7 {[%emt 0:00:45]} 10. Qc2 {[%emt 0:00:11]} Bf6 {[%emt 0:02:12]} 11. Be3 {[%emt 0:00:58]} Ne7 {[%emt 0:00:04]} 12. d4 {[%emt 0:00:14]} cxd4 {[%emt 0:00:03]} 13. cxd4 {[%emt 0:00:04]} exd4 {[%emt 0:00:18]} 14. Bxd4 {[%emt 0:00:25]} Bxd4 {[%emt 0:00:01]} 15. Nxd4 {[%emt 0:00:01]} O-O {[%emt 0:00:02]} 16. Nc3 {[%emt 0:02:22][%cal Oc3d5]} Rac8 {[%emt 0:00:15]} 17. Rac1 {[%emt 0:00:32]} g6 {[%emt 0:05:04]} (17... Rfe8 $14) 18. Qd2 $16 {[%emt 0:02:20]} Rcd8 {[%emt 0:01:33] [#]} (18... Qb8 $16) 19. Qf4 {[%emt 0:01:57]} (19. Nxc6 $1 $18 {[%mdl 512] and White stays clearly on top.} Nxc6 20. Nd5) 19... Qa5 {[%emt 0:00:47]} 20. Nf3 {[%emt 0:01:23]} f6 {[%emt 0:00:02][%cal Bf7f6,Bf6e5][%mdl 32]} 21. Rxd6 $2 {[%emt 0:00:46] [#]} (21. Qg3 $16) 21... Qc7 $1 $17 {[%emt 0:00:00] Black is clearly better.} 22. Rcd1 {[%emt 0:00:20] Hoping for e5.} Nc8 {[%emt 0:00:01][%mdl 1024] Black has strong compensation.} 23. e5 {[%emt 0:00:10]} fxe5 {[%emt 0:00:10] Weighted Error Value: White=0.37/Black=0.15 (very precise)} ({But not} 23... Nxd6 $6 24. exd6 Qf7 25. h3 $11) 0-1

[Event "European Corporate Championship 2022"]
[Site "Rotterdam"]
[Date "2022.06.19"]
[Round "9.13"]
[White "Warmerdam, Max"]
[Black "Pardo Simon, David"]
[Result "1-0"]
[ECO "B07"]
[WhiteElo "2614"]
[BlackElo "2461"]
[Annotator "TA"]
[PlyCount "126"]
[EventDate "2022.06.18"]
[EventType "team-tourn"]
[EventCountry "NED"]
[SourceTitle "playchess.com"]
[Source "ChessBase"]
[SourceQuality "1"]
[TimeControl "900+5"]

{[%evp 13,126,21,32,21,41,32,35,31,35,29,54,47,54,44,64,62,66,48,41,41,46,46,50,56,52,56,114,44,74,36,33,28,110,110,95,58,30,30,61,35,27,35,77,-17,-20,-72,-48,-83,28,17,40,14,6,0,0,0,0,0,0,0,0,2,78,31,31,31,34,0,0,0,0,0,0,0,0,-25,-28,-64,0,0,0,0,0,0,0,0,0,0,0,0,0,0,0,0,0,0,0,0,0,0,0,0,0,0,29975,0,0,0,0,0,0,0,0,0,0]} 1. d4 {[%emt 0:00:04]} d6 {[%emt 0:00:12]} 2. e4 {[%emt 0:00:02]} g6 {[%emt 0:00:02]} 3. Nf3 {[%emt 0:00:04]} Nf6 {[%emt 0:00:26]} 4. Bd3 {[%emt 0:00:02]} Bg7 {[%emt 0:00:24]} 5. O-O {[%emt 0:00:04]} O-O {[%emt 0:00:23]} 6. c3 {[%emt 0:00:06]} Nbd7 {[%emt 0:01:03]} 7. Re1 {[%emt 0:00:04]} e5 {[%emt 0:00:10]} 8. h3 {[%emt 0:00:03] B07: Pirc Defence: Miscellaneous Systems.} Re8 {[%emt 0:00:14] The main line 8...Re8 scores better than 8...b6.} 9. Bg5 {[%emt 0:00:10][%cal Bc1g5,Bg5h4,Bh4g3,Bg3h2][%mdl 32]} h6 {[%emt 0:00:12]} 10. Bh4 {[%emt 0:00:02] White is slightly better.} c6 {[%emt 0:00:25]} 11. a4 {[%emt 0:00:15] [#]} b6 $146 {[%emt 0:01:01]} ({Predecessor:} 11... Qc7 12. Bg3 Nh5 13. Bh2 a5 14. Nbd2 Nf4 15. Bxf4 exf4 16. Nf1 g5 17. Re2 Nf6 {0-1 (43) Warmerdam,M (2506)-Meissner,F (2362) Chess.com INT 2020}) 12. Nbd2 {[%emt 0:00:08]} Qc7 {[%emt 0:00:03]} 13. Bg3 {[%emt 0:00:04]} a6 {[%emt 0:00:42]} 14. b4 {[%emt 0:00:31] White is more active.} Bb7 {[%emt 0:00:12]} 15. Qb3 {[%emt 0:01:44]} Nf8 {[%emt 0:00:26][%cal Bd7f8,Bf8e6,Be6f4][%mdl 32]} 16. Rad1 {[%emt 0:01:01]} Nh5 {[%emt 0:00:28]} 17. Bh2 {[%emt 0:00:03]} Ne6 {[%emt 0:00:01]} 18. Bf1 {[%emt 0:01:25]} Rad8 {[%emt 0:01:01][%cal Re5d4]} 19. Nc4 {[%emt 0:00:38][%cal Rd4e5]} b5 {[%emt 0:01:14]} (19... Ng5 $14) 20. Ne3 {[%emt 0:00:25]} (20. Na5 $16) 20... Nef4 {[%emt 0:08:06]} 21. dxe5 {[%emt 0:01:58]} dxe5 {[%emt 0:00:00]} 22. c4 {[%emt 0:00:03]} bxa4 {[%emt 0:00:00]} (22... Nf6 $11 {keeps the balance.}) 23. Qxa4 $16 {[%emt 0:00:05]} Nf6 {[%emt 0:00:00]} 24. Qc2 {[%emt 0:03:36]} a5 {[%emt 0:00:00]} 25. bxa5 {[%emt 0:00:20]} Qxa5 {[%emt 0:00:00]} 26. Rxd8 {[%emt 0:00:13]} Rxd8 {[%emt 0:00:00]} 27. Qb2 {[%emt 0:00:10][%csl LRb7,LRe5]} Bc8 {[%emt 0:00:00]} 28. Ra1 {[%emt 0:01:08]} ({Better is} 28. Qxe5 $16 N6d5 29. Qb8) 28... Qc5 $11 {[%emt 0:00:00]} 29. Ra8 {[%emt 0:00:15]} ({Not} 29. Nxe5 $2 N6h5 30. h4 (30. Bxf4 $2 Nxf4 31. h4 h5 $19) 30... Bxe5 $19) (29. Qc2 $11) 29... Nxe4 $17 {[%emt 0:00:00]} 30. Ng4 {[%emt 0:01:07]} Rf8 {[%emt 0:00:00]} (30... Kh7 $17 31. Ne3 Rf8) 31. Ngxe5 $11 {[%emt 0:00:28]} g5 {[%emt 0:00:00]} 32. Bxf4 {[%emt 0:00:36] Really sharp!} gxf4 {[%emt 0:00:00]} 33. Qc2 {[%emt 0:00:02]} Ng5 {[%emt 0:00:03]} 34. h4 {[%emt 0:00:37]} Nxf3+ {[%emt 0:00:08]} 35. Nxf3 {[%emt 0:00:02]} Bg4 {[%emt 0:00:01] This bishop pair is nice.} 36. Rxf8+ {[%emt 0:00:03]} Bxf8 {[%emt 0:00:01]} 37. Qe4 {[%emt 0:00:04]} Bg7 {[%emt 0:00:43]} (37... Bxf3 $11 38. Qxf3 Qd4) 38. Qe8+ {[%emt 0:00:15]} (38. Qxf4 $16 Qf5 39. Qb8+ Qc8 40. Qg3) 38... Bf8 $14 {[%emt 0:00:11]} ({Don't take} 38... Qf8 39. Qxc6 Qe7 40. Qa8+ Bf8 41. Bd3 $16) 39. Ne5 {[%emt 0:00:11]} Be6 {[%emt 0:00:02]} 40. Nxc6 {[%emt 0:00:02]} (40. Ng6 $5) 40... Kg7 {[%emt 0:00:19]} 41. Nd8 {[%emt 0:00:10]} Bxc4 {[%emt 0:00:05]} 42. Bxc4 {[%emt 0:00:02]} Qxc4 $11 {[%emt 0:00:00][%mdl 4096] Endgame KQB-KQN} 43. Qe5+ {[%emt 0:00:01]} Kg8 {[%emt 0:00:07]} 44. Qf5 {[%emt 0:00:06]} Be7 {[%emt 0:00:08][%csl LRd8,LRh4]} 45. Qd7 {[%emt 0:00:04]} Bxd8 {[%emt 0:00:02]} (45... Bxh4 $15 46. Qg4+ Bg5) 46. Qxd8+ $15 {[%emt 0:00:01] KQ-KQ} Kg7 {[%emt 0:00:01]} 47. Qd1 {[%emt 0:00:02]} Qe6 {[%emt 0:00:06]} 48. Qf3 {[%emt 0:00:01]} Qe5 {[%emt 0:00:04]} 49. Kh2 {[%emt 0:00:02]} h5 {[%emt 0:00:05]} 50. Kg1 {[%emt 0:00:09]} Qe1+ {[%emt 0:00:01]} 51. Kh2 {[%emt 0:00:01]} Qe5 {[%emt 0:00:01]} 52. Qd3 {[%emt 0:00:10]} Qf6 {[%emt 0:00:02]} 53. Qh3 {[%emt 0:00:05]} Qe5 {[%emt 0:00:06] [#] Strongly threatening ...f3+.} 54. Qd3 {[%emt 0:00:19]} Qf6 {[%emt 0:00:22]} 55. g3 {[%emt 0:00:01]} fxg3+ {[%emt 0:00:02]} 56. Qxg3+ {[%emt 0:00:01]} Kh6 {[%emt 0:00:08]} 57. Kg2 {[%emt 0:00:02]} Qg6 {[%emt 0:00:02]} 58. Kf3 {[%emt 0:00:02]} Qxg3+ $4 {[%emt 0:00:03][%mdl 8192] [#]} (58... Qd3+ $11 59. Kf4 Qd4+ 60. Kf5 Qd7+ 61. Ke5 Qe6+ 62. Kf4 Qf6+ 63. Ke3 Qe6+ 64. Kf4 Qf6+ 65. Ke4 Qe6+ 66. Qe5 f5+ 67. Kd4 Qb6+ 68. Kd3 (68. Qc5 Qf6+ 69. Ke3 Qe6+ 70. Kd2 Qf6 $11) 68... Qxf2) 59. fxg3 $2 {[%emt 0:00:31]} (59. Kxg3 {mates} Kg6 60. Kf4 Kf6 61. f3 Kg6 62. Ke5 Kh7 63. Kf6 Kg8 64. Kg5) 59... Kg6 $11 {[%emt 0:00:05] The position is equal.} 60. Ke4 {[%emt 0:00:02]} Kf6 {[%emt 0:00:22]} 61. Kf4 {[%emt 0:00:01]} Kg6 $1 {[%emt 0:00:08]} 62. Ke5 {[%emt 0:00:01]} f6+ {[%emt 0:00:13]} 63. Ke6 {[%emt 0:00:45]} Kg7 $1 {[%mdl 32768] Weighted Error Value: White=0.21 (precise) /Black=0.28 (precise) . Sensor Board Error (Ke4/e5)?} 1-0

[Event "European Corporate Championship 2022"]
[Site "Rotterdam"]
[Date "2022.06.19"]
[Round "9.14"]
[White "Jain Aum"]
[Black "Lie, Michael"]
[Result "0-1"]
[ECO "B27"]
[WhiteElo "1591"]
[BlackElo "1798"]
[Annotator "NA RC"]
[PlyCount "112"]
[EventDate "2022.06.18"]
[EventType "team-tourn"]
[EventCountry "NED"]
[SourceTitle "playchess.com"]
[Source "ChessBase"]
[SourceQuality "1"]
[TimeControl "900+5"]

1. e4 {[%emt 0:00:05]} c5 {[%emt 0:00:08]} 2. Nf3 {[%emt 0:00:08]} g6 {[%emt 0:00:02]} 3. d4 {[%emt 0:00:21]} cxd4 {[%emt 0:00:02]} 4. Qxd4 {[%emt 0:00:42]} Nf6 {[%emt 0:00:01]} 5. e5 {[%emt 0:02:34]} Nc6 {[%emt 0:00:03]} 6. Qc3 {[%emt 0:00:12]} Ne4 {[%emt 0:00:12]} 7. Qc4 {[%emt 0:02:22]} d5 {[%emt 0:00:07]} 8. exd6 {[%emt 0:00:01]} Nxd6 {[%emt 0:00:01]} 9. Qc3 {[%emt 0:00:02]} e5 {[%emt 0:01:41]} 10. Bg5 {[%emt 0:01:33]} f6 {[%emt 0:01:10]} 11. Be3 {[%emt 0:02:15]} Be6 {[%emt 0:00:18]} 12. a3 {[%emt 0:00:26]} Rc8 {[%emt 0:00:04]} 13. Qd2 {[%emt 0:00:26]} Bg7 {[%emt 0:00:32]} 14. Nc3 {[%emt 0:00:08]} Kf7 {[%emt 0:02:21]} 15. Rd1 {[%emt 0:01:57]} Nf5 {[%emt 0:02:17]} 16. Be2 {[%emt 0:01:19]} Qxd2+ {[%emt 0:00:06]} 17. Rxd2 {[%emt 0:00:10]} Nxe3 {[%emt 0:00:10]} 18. fxe3 {[%emt 0:01:54]} Rhd8 {[%emt 0:00:16]} 19. Kf2 {[%emt 0:00:00]} Rxd2 {[%emt 0:00:13]} 20. Nxd2 {[%emt 0:00:00]} Rd8 {[%emt 0:00:14]} 21. Rd1 {[%emt 0:00:00]} f5 {[%emt 0:00:26]} 22. Nc4 {[%emt 0:00:00]} Rxd1 {[%emt 0:00:38]} 23. Nxd1 {[%emt 0:00:00]} Ke7 {[%emt 0:00:14]} 24. b3 {[%emt 0:00:00]} e4 {[%emt 0:00:32]} 25. Nd2 {[%emt 0:00:00]} Ne5 {[%emt 0:00:27]} 26. a4 {[%emt 0:00:00]} h5 {[%emt 0:00:10]} 27. h3 {[%emt 0:00:00]} Nc6 {[%emt 0:00:59]} 28. Bc4 {[%emt 0:00:06]} Nb4 {[%emt 0:00:10]} 29. Bxe6 {[%emt 0:00:13]} Kxe6 {[%emt 0:00:02]} 30. c3 {[%emt 0:00:05]} Na2 {[%emt 0:00:37]} 31. c4 {[%emt 0:00:03]} Nc1 {[%emt 0:00:50]} 32. Ke1 {[%emt 0:00:22]} Bf8 {[%emt 0:00:21]} 33. Nf2 {[%emt 0:00:15]} Bb4 {[%emt 0:00:04]} 34. Kd1 {[%emt 0:00:00]} Bxd2 {[%emt 0:00:03]} 35. Kxd2 {[%emt 0:00:01]} Nxb3+ {[%emt 0:00:01]} 36. Kc3 {[%emt 0:00:09]} Nc5 {[%emt 0:00:08]} 37. Kb4 {[%emt 0:00:03]} b6 {[%emt 0:00:08]} 38. Kb5 {[%emt 0:00:14]} Kd6 {[%emt 0:00:21]} 39. Kb4 {[%emt 0:00:06]} Nd3+ {[%emt 0:00:54]} 40. Nxd3 {[%emt 0:00:01]} exd3 {[%emt 0:00:01]} 41. Kc3 {[%emt 0:00:01]} Kc5 {[%emt 0:00:01]} 42. Kxd3 {[%emt 0:00:01]} Kb4 {[%emt 0:00:00]} 43. h4 {[%emt 0:00:25]} Kxa4 {[%emt 0:00:02]} 44. Kc3 {[%emt 0:00:00]} b5 {[%emt 0:00:36]} 45. cxb5 {[%emt 0:00:00]} Kxb5 {[%emt 0:00:01]} 46. Kd4 {[%emt 0:00:00]} a5 {[%emt 0:00:07]} 47. Ke5 {[%emt 0:00:01]} a4 {[%emt 0:00:01]} 48. Kf6 {[%emt 0:00:01]} a3 {[%emt 0:00:00]} 49. Kxg6 {[%emt 0:00:01]} a2 {[%emt 0:00:02]} 50. Kxf5 {[%emt 0:00:01]} a1=Q {[%emt 0:00:01]} 51. Kg5 {[%emt 0:00:01]} Qd1 {[%emt 0:00:05]} 52. e4 {[%emt 0:00:06]} Qg4+ {[%emt 0:00:01]} 53. Kh6 {[%emt 0:00:01]} Kc6 {[%emt 0:00:10]} 54. e5 {[%emt 0:00:01]} Kd7 {[%emt 0:00:01]} 55. g3 {[%emt 0:00:05]} Ke7 {[%emt 0:00:10]} 56. e6 {[%emt 0:00:05]} Kf6 {[%emt 0:00:02]} 0-1

[Event "European Corporate Championship 2022"]
[Site "Rotterdam"]
[Date "2022.06.19"]
[Round "9.17"]
[White "Haast, Mark"]
[Black "De Rooij, Gert"]
[Result "1-0"]
[ECO "A22"]
[WhiteElo "2414"]
[BlackElo "1937"]
[Annotator "TA"]
[PlyCount "51"]
[EventDate "2022.06.18"]
[EventType "team-tourn"]
[EventCountry "NED"]
[SourceTitle "playchess.com"]
[Source "ChessBase"]
[SourceQuality "1"]
[TimeControl "900+5"]

{[%evp 9,51,34,30,30,24,21,31,28,30,29,45,34,58,21,40,23,35,29,102,34,191,197,220,227,225,174,359,339,401,395,1045,691,694,333,322,224,485,473,473,443,697,643,2445,2137]} 1. c4 {[%emt 0:00:02]} Nf6 {[%emt 0:00:01]} 2. g3 {[%emt 0:00:01]} d6 {[%emt 0:00:03]} 3. Bg2 {[%emt 0:15:17]} Nbd7 {[%emt 0:00:03]} 4. Nc3 {[%emt 0:00:00]} e5 {[%emt 0:00:08]} 5. d3 {[%emt 0:00:00]} Be7 {[%emt 0:00:15]} 6. e4 {[%emt 0:00:00] A22: English Opening: 1...e5 2 Nc3 Nf6.} O-O {[%emt 0:00:08]} 7. Nge2 {[%emt 0:00:00]} Re8 {[%emt 0:00:33]} 8. O-O {[%emt 0:00:00] White is slightly better.} c6 {[%emt 0:00:15]} 9. h3 {[%emt 0:00:00]} a5 {[%emt 0:00:08]} 10. Be3 {[%emt 0:00:00]} Nc5 {[%emt 0:01:32] [#]} 11. Qd2 $146 {[%emt 0:00:00]} ({Predecessor:} 11. f4 Bf8 12. g4 exf4 13. Nxf4 Ne6 14. Qd2 Nxf4 15. Rxf4 Be6 16. Raf1 d5 17. exd5 cxd5 18. Rxf6 {0-1 (64) Dziuba,M (2589)-Gallardo Fernandez,C (2240) Linares 2013}) 11... Ne6 {[%emt 0:12:54]} 12. f4 {[%emt 0:00:00][%cal Bf2f4,Bf4f5][%mdl 32]} c5 {[%emt 0:00:00]} 13. g4 {[%emt 0:00:00][%cal Bg3g4,Bg4g5][%mdl 32]} Nd4 {[%emt 0:00:00] [#]} (13... h6 $11 {keeps the balance.}) 14. Ng3 {[%emt 0:00:00]} (14. g5 $1 $16 {[%cal Rg5f6]} Nh5 15. f5) 14... g6 $2 {[%emt 0:00:00] A mistake that costs the game.} (14... exf4 $14 15. Bxf4 Nd7) 15. f5 $18 {[%emt 0:00:00]} Kh8 {[%emt 0:00:00]} 16. g5 {[%emt 0:00:00]} Nd7 {[%emt 0:00:00]} 17. h4 {[%emt 0:00:00]} f6 $2 {[%emt 0:00:00]} (17... Rg8 {was worth a try.} 18. f6 Bf8) 18. Nd5 {[%emt 0:00:00]} gxf5 {[%emt 0:00:00]} 19. exf5 {[%emt 0:00:00]} Nf8 $2 {[%emt 0:00:00]} (19... Rg8 20. g6 Bf8) 20. Bxd4 {[%emt 0:00:00]} cxd4 {[%emt 0:00:00]} 21. Ne4 {[%emt 0:00:00] Pair of Knights!} (21. g6 $142 {Intending Qh6 and mate.} Nxg6 22. fxg6) 21... Nd7 {[%emt 0:00:00]} 22. Qe2 {[%emt 0:00:00] [#] Threatens to win with Qh5.} Rf8 $2 {[%emt 0:00:00]} (22... Rb8 23. h5 Rf8) 23. Qh5 {[%emt 0:00:00] Hoping for g6. White is clearly winning.} Rg8 {[%emt 0:00:00]} 24. Rf3 {[%emt 0:00:00]} (24. g6 Rg7 25. Qf3 Nc5 $18) 24... fxg5 {[%emt 0:00:00]} (24... b6 $142 25. Rg3 (25. g6 Rg7 $18) 25... Ra7) 25. f6 {[%emt 0:00:00]} Bf8 {[%emt 0:00:00]} 26. Nxg5 {[%emt 0:00:00] Weighted Error Value: White=0.43/Black=0.62} 1-0

[Event "European Corporate Championship 2022"]
[Site "Rotterdam"]
[Date "2022.06.19"]
[Round "9.18"]
[White "De Bruijn, Tjerk-Peter"]
[Black "Schouten, Jordy"]
[Result "0-1"]
[ECO "B23"]
[WhiteElo "1729"]
[BlackElo "2121"]
[Annotator "NA RC"]
[PlyCount "94"]
[EventDate "2022.06.18"]
[EventType "team-tourn"]
[EventCountry "NED"]
[SourceTitle "playchess.com"]
[Source "ChessBase"]
[SourceQuality "1"]
[TimeControl "900+5"]

1. e4 {[%emt 0:00:02]} c5 {[%emt 0:00:01]} 2. Nc3 {[%emt 0:00:05]} a6 {[%emt 0:00:01]} 3. f4 {[%emt 0:00:06]} b5 {[%emt 0:00:02]} 4. Nf3 {[%emt 0:00:10]} Bb7 {[%emt 0:00:05]} 5. d3 {[%emt 0:00:16]} e6 {[%emt 0:00:06]} 6. Be2 {[%emt 0:00:08]} Nf6 {[%emt 0:00:13]} 7. O-O {[%emt 0:00:10]} d5 {[%emt 0:00:13]} 8. e5 {[%emt 0:00:36]} Ng8 {[%emt 0:00:30]} 9. d4 {[%emt 0:00:37]} h5 {[%emt 0:00:07]} 10. Be3 {[%emt 0:00:20]} Qb6 {[%emt 0:00:17]} 11. dxc5 {[%emt 0:00:32]} Bxc5 {[%emt 0:00:02]} 12. Bxc5 {[%emt 0:00:05]} Qxc5+ {[%emt 0:00:02]} 13. Qd4 {[%emt 0:00:13]} Nd7 {[%emt 0:00:06]} 14. a3 {[%emt 0:01:49]} Nh6 {[%emt 0:00:15]} 15. Qxc5 {[%emt 0:00:23]} Nxc5 {[%emt 0:00:01]} 16. Nd4 {[%emt 0:00:15]} g6 {[%emt 0:00:17]} 17. h3 {[%emt 0:10:43]} Rc8 {[%emt 0:01:02]} 18. Rac1 {[%emt 0:00:00]} Ke7 {[%emt 0:00:36]} 19. Bf3 {[%emt 0:00:00]} Nd7 {[%emt 0:00:16]} 20. Nce2 {[%emt 0:00:00]} Nb6 {[%emt 0:00:20]} 21. b3 {[%emt 0:00:00]} Rc7 {[%emt 0:00:47]} 22. Kf2 {[%emt 0:00:00]} Rhc8 {[%emt 0:00:30]} 23. Ke3 {[%emt 0:00:00]} Nd7 {[%emt 0:00:49]} 24. Kd2 {[%emt 0:00:00]} h4 {[%emt 0:01:28]} 25. Rfd1 {[%emt 0:00:00]} Ng8 {[%emt 0:02:46]} 26. Re1 {[%emt 0:00:00]} Kf8 {[%emt 0:00:53]} 27. Rg1 {[%emt 0:00:00]} g5 {[%emt 0:00:12]} 28. g3 {[%emt 0:00:00]} hxg3 {[%emt 0:00:10]} 29. Rxg3 {[%emt 0:00:00]} gxf4 {[%emt 0:00:02]} 30. Nxf4 {[%emt 0:00:00]} Nxe5 {[%emt 0:00:07]} 31. Nfxe6+ {[%emt 0:00:00]} fxe6 {[%emt 0:00:07]} 32. Nxe6+ {[%emt 0:00:00]} Kf7 {[%emt 0:00:11]} 33. Nxc7 {[%emt 0:00:00]} Rxc7 {[%emt 0:00:02]} 34. Bh5+ {[%emt 0:00:00]} Kf8 {[%emt 0:00:01]} 35. Rf1+ {[%emt 0:00:00]} Nf7 {[%emt 0:00:04]} 36. Rgf3 {[%emt 0:00:00]} Ngh6 {[%emt 0:00:01]} 37. Rf6 {[%emt 0:00:00]} Kg7 {[%emt 0:00:21]} 38. Rg6+ {[%emt 0:00:00]} Kh7 {[%emt 0:00:01]} 39. Rgf6 {[%emt 0:00:19]} Ng5 {[%emt 0:00:20]} 40. Bg6+ {[%emt 0:00:19]} Kg7 {[%emt 0:00:02]} 41. h4 {[%emt 0:00:39]} Ne4+ {[%emt 0:00:25]} 42. Bxe4 {[%emt 0:00:02]} dxe4 {[%emt 0:00:01]} 43. h5 {[%emt 0:00:15]} e3+ {[%emt 0:01:20]} 44. Ke2 {[%emt 0:00:08]} Be4 {[%emt 0:00:01]} 45. Rxa6 {[%emt 0:00:16]} Ng4 {[%emt 0:00:06]} 46. Rg1 {[%emt 0:00:12]} Rxc2+ {[%emt 0:00:02]} 47. Kd1 {[%emt 0:00:06]} e2+ {[%emt 0:00:03]} 0-1